Cogmind - Beta 15 @@@ ROGUE MODE // 2025.06.07 @ 05:14:34 Player: The Gourd Result: Destroyed by G-47 Trooper with Particle Gun Performance ------------- Evolutions (0) 0 Regions Visited (1) 200 Robots Destroyed (31) 155 Value Destroyed (609) 609 Prototype IDs (0) 0 Alien Tech Used (0) 0 Bonus (0) 0 TOTAL SCORE: 964 Bonus ------- None Cogmind --------- Core Integrity 0/250 Matter 214/300 Energy 250/250 System Corruption 0% Temperature Cool (39) Movement Rolling (205) Ox7 Location -10/Materials Parts ------- > --- POWER (1) -------- Ion Engine > --- PROPULSION (2) --- Compact Wheel > --- UTILITY (2) ------ High-capacity Storage Unit Huge Storage Unit > --- WEAPON (2) ------- Light Assault Rifle Light Assault Rifle > --- INVENTORY (25) --- Ion Engine Light Ion Engine Heat Sink Heat Sink Heat Sink Small Storage Unit Weight Redist. System Signal Interpreter Targeting Computer Hacking Suite Hacking Suite Hacking Suite Medium Laser Light Assault Rifle Light Assault Rifle Grenade Launcher Mining Laser Peak State ------------ > --- POWER ------------ Ion Engine > --- PROPULSION ------- Light Treads Light Treads > --- UTILITY ---------- High-capacity Storage Unit Seismic Detector > --- WEAPON ----------- Assault Rifle Assault Rifle > --- INVENTORY -------- Ion Engine Light Ion Engine Light Treads Compact Wheel Heat Sink Heat Sink Heat Sink Huge Storage Unit Weight Redist. System Signal Interpreter Targeting Computer Hacking Suite Medium Laser Light Assault Rifle Light Assault Rifle Light Assault Rifle Mining Laser [Rating: 9] Favorites ----------- Power Ion Engine Engine Ion Engine Propulsion Light Treads Treads Light Treads Wheel Compact Wheel Utility High-capacity Storage Unit Device Seismic Detector Storage High-capacity Storage Unit Weapon Assault Rifle Ballistic Gun Assault Rifle Launcher Grenade Launcher Build | -11 -10 ------- Run | Yrd Mat Slots Evolved . | . . Power . | . . Propulsion . | . . Utility . | . . Weapon . | . . Parts Attached 16 | 8 8 Power 2 | 1 1 Engine 2 | 1 1 Core . | . . Reactor . | . . Propulsion 5 | 3 2 Treads 3 | 2 1 Leg . | . . Wheel 2 | 1 1 Hover . | . . Flight . | . . Utility 4 | 2 2 Device 1 | 1 . Storage 3 | 1 2 Processor . | . . Hackware . | . . Protection . | . . Artifact . | . . Weapon 5 | 2 3 Energy Gun . | . . Energy Cannon . | . . Ballistic Gun 4 | 2 2 Ballistic Cannon . | . . Launcher 1 | . 1 Special Weapon . | . . Impact Weapon . | . . Slashing Weapon . | . . Piercing Weapon . | . . Special Melee Weapon . | . . Unidentified Prototypes . | . . Parts Lost 6 | . 6 Power . | . . Propulsion 3 | . 3 Utility 1 | . 1 Weapon 2 | . 2 Highest Loss Streak 2 | . 2 To Critical Strikes . | . . Average Backups 14 | 3 15 Power 1 | . 1 Propulsion 1 | 1 1 Utility 7 | . 7 Weapon 3 | 1 4 Tool/Special . | . . Unused Backups 15 | . 15 Power 1 | . 1 Propulsion . | . . Utility 10 | . 10 Weapon 4 | . 4 Tool/Special . | . . Average Slot Usage (%) 94 | . 94 Engine 14 | . 14 Treads 27 | . 27 Device 8 | . 8 Storage 14 | . 14 Ballistic Gun 27 | . 27 Peak Build Rating 9 | 7 9 Average Rating 7 | 5 8 On Entrance 3 | . 7 Naked Turns . | . . Heaviest Build 50 | 15 50 Greatest Support 40 | 40 40 Greatest Overweight (x) 3 | 1 3 Average Overweight (x) . | . . Largest Inventory Capacity 25 | 8 25 Average Capacity 17 | 7 18 Most Carried 20 | 5 20 Average Carried 14 | 3 15 Final Capacity 25 | 8 25 Final Carried 17 | 5 17 Class Distribution -------------------- 100% | Mutant Dominant Class ---------------- Mutant | -10/Materials Resources | -11 -10 ----------- Run | Yrd Mat Matter Collected 717 | 310 407 Remotely . | . . Salvage Created 968 | 136 832 Parts 68 | 8 60 Haulers Intercepted 1 | . 1 Recyclers Shooed 1 | 1 . Parts Field Recycled . | . . Retrieved Matter . | . . Parts Self-Destructed . | . . Prevented . | . . Kills | -11 -10 ------- Run | Yrd Mat Combat Hostiles Destroyed 19 | . 19 Guns 17 | . 17 AOE 2 | . 2 Classes Destroyed 8 | 3 5 Worker 1 | 1 . Builder 2 | . 2 Tunneler 3 | 2 1 Hauler 1 | . 1 Recycler 2 | 1 1 Operator 3 | . 3 Swarmer 6 | . 6 Grunt 13 | . 13 Best Kill Streak 6 | 2 6 Combat Bots Only 3 | . 3 Max Kills in Single Turn 2 | 1 2 Gunslinging . | . . Exploded 1 | . 1 Melee . | . . Uniques/NPCs Destroyed . | . . Combat | -11 -10 -------- Run | Yrd Mat Hostile Shots Fired 133 | . 133 Missed 22 | . 22 Hits 111 | . 111 Projectile 111 | . 111 Critical Strikes 3 | . 3 Damage Taken 1235 | . 1235 Core 264 | . 264 Absorbed by Shields . | . . Regen/Repaired (Parts) 52 | . 52 Core Remaining (%) 100 | 100 . Volleys Fired 103 | 5 98 Largest 2 | 2 2 Hottest 40 | 40 40 Shots Fired 197 | 10 187 Gun 193 | 10 183 Cannon . | . . Launcher 4 | . 4 Special . | . . Kinetic 193 | 10 183 Thermal . | . . Explosive 4 | . 4 Electromagnetic . | . . Robot Hit Streak 17 | 4 17 Robot Miss Streak 5 | 1 5 Penetration Max . | . . Secondary Targets 2 | . 2 Max Gunslinging Chain 1 | . 1 Shots Hit Robots 131 | 7 124 Core Hits 59 | 4 55 Critical Kills . | . . Critical Parts Destroyed 1 | . 1 Critical Strikes 1 | . 1 Destroy 1 | . 1 Melee Attacks . | . . Impact . | . . Slashing . | . . Piercing . | . . Sneak Attacks . | . . Combat Hostiles . | . . Follow-up Attacks . | . . Damage Inflicted 1646 | 97 1549 Guns 1352 | 97 1255 Cannons . | . . Explosions 294 | . 294 Melee . | . . Ramming . | . . Kinetic 1352 | 97 1255 Thermal . | . . Explosive 294 | . 294 Electromagnetic . | . . Impact . | . . Slashing . | . . Piercing . | . . Highest Corruption . | . . Average Corruption . | . . Corruption Purged . | . . Corruption Blocked . | . . Overload Shots . | . . Overflow Damage 2 | . 2 Projectiles . | . . Explosions 2 | . 2 Melee . | . . Knockbacks . | . . Impact . | . . Kinetic . | . . Secondary . | . . Self-Inflicted Damage . | . . Shots . | . . Rammed . | . . Targets Rammed . | . . Kicked . | . . Crushed . | . . Highest Temperature 34 | . 34 Average Temperature 9 | . 9 Received Heat Transfer 624 | . 624 Siege Activations . | . . Martial Activations . | . . Shielding Activations . | . . Robots Disrupted . | . . Combat Hostiles . | . . Robots Corrupted . | . . Combat Hostiles . | . . Parts Fried . | . . Impact Corruptions . | . . Robots Melted . | . . Combat Hostiles . | . . Parts Melted . | . . Heat Transferred . | . . Parts Sabotaged . | . . Parts Stolen . | . . Parts Stripped . | . . Power Chain Reactions . | . . Alert | -11 -10 ------- Run | Yrd Mat Maximum Alert Level . | . . Low Security (%) 100 | 100 100 Level 1 . | . . Level 2 . | . . Level 3 . | . . Level 4 . | . . Level 5 . | . . High Security . | . . Max Security . | . . Peak Influence 90 | 5 90 Initial . | . . Average 26 | . 28 Influence Increases 557 | 20 537 Destroy 0b10 Robot/C 380 | . 380 Destroy 0b10 Robot/NC 60 | 20 40 Destroy Leader 82 | . 82 Successful Hack 10 | . 10 Destroy Structure 10 | . 10 Lose Combat Pursuer 15 | . 15 Influence Decreases 481 | 20 461 Time Decay 421 | 20 401 Lost Part 60 | . 60 Squads Dispatched 5 | . 5 Investigation 1 | . 1 Extermination . | . . Reinforcement 4 | . 4 Assault . | . . Garrison . | . . Intercept . | . . Searches Triggered . | . . Construction Impeded . | . . Haulers Reinforced . | . . Active Scanning Responses . | . . Cargo Convoy Interrupts . | . . Stealth | -11 -10 --------- Run | Yrd Mat Distress Signals 2 | . 2 Communications Jammed . | . . Distress Signals . | . . Times Spotted 39 | . 39 Peak Tracking Total 4 | . 4 Tactical Retreats 1 | . 1 Traps | -11 -10 ------- Run | Yrd Mat Traps Triggered 1 | . 1 Indirectly . | . . Trap Hack Attempts . | . . Triggered . | . . Disarmed . | . . Reprogrammed . | . . Reused . | . . Traps Extracted . | . . Installed . | . . Triggered . | . . Machines | -11 -10 ---------- Run | Yrd Mat Machines Disabled . | . . Max in Single Turn . | . . Machines Repaired . | . . Machines Dismantled . | . . Machines Sabotaged . | . . Overloaded Fab Kills . | . . Hacking | -11 -10 --------- Run | Yrd Mat Machines Accessed 3 | . 3 Terminals 2 | . 2 Fabricators . | . . Repair Stations 1 | . 1 Recycling Units . | . . Scanalyzers . | . . Garrison Access . | . . Total Hacks 9 | . 9 Successful 4 | . 4 Failed 5 | . 5 Catastrophic . | . . Database Lockouts . | . . Manual 6 | . 6 Terminals 6 | . 6 Fabricators . | . . Repair Stations 3 | . 3 Recycling Units . | . . Scanalyzers . | . . Garrison Access . | . . Terminal Hacks . | . . Fabricator Hacks . | . . Repair Station Hacks 2 | . 2 Scan Component 1 | . 1 Repair 1 | . 1 Recycling Unit Hacks . | . . Scanalyzer . | . . Garrison Access Hacks . | . . Unauthorized Hacks 2 | . 2 Terminals 2 | . 2 Botnet 1 | . 1 Skim 1 | . 1 Fabricators . | . . Repair Stations . | . . Recycling Units . | . . Scanalyzers . | . . Garrison Access . | . . Data Cores Recovered . | . . Used . | . . Hacking Detections 3 | . 3 Full Trace Events . | . . Feedback Events . | . . Feedback Blocked . | . . Robot Schematics Acquired . | . . Robots Built . | . . Authchips . | . . Time . | . . Total Robot Build Rating . | . . Part Schematics Acquired . | . . Parts Built . | . . Authchips . | . . Time . | . . Total Part Build Rating . | . . Parts Repaired 1 | . 1 Time 26 | . 26 Parts Recycled . | . . Recycled Matter . | . . Retrieved Matter . | . . Retrieved Components . | . . Parts Scanalyzed . | . . Part Schematics Acquired . | . . Parts Damaged . | . . Bothacking | -11 -10 ------------ Run | Yrd Mat Used RIF Installer . | . . Robots Hacked . | . . Non-combat . | . . Combat . | . . Robot Hacks Applied . | . . Relay Couplers Released . | . . Fabnet Peak Effective % . | . . Robots Rewired . | . . Allies Hacked . | . . Hacks Repelled . | . . Allies | -11 -10 -------- Run | Yrd Mat Total Allies . | . . Largest Group . | . . Highest-Rated Group . | . . Highest-Rated Ally . | . . Total Orders . | . . Ally Attacks . | . . Total Damage . | . . Kills . | . . Allies Corrupted . | . . Allies Melted . | . . Intel | -11 -10 ------- Run | Yrd Mat Active Infowar (turns) 1460 | 85 1375 Seismic 1460 | 85 1375 Robot Analysis Total . | . . Derelict Logs Recovered . | . . Drone Launches . | . . Drone Recoveries . | . . Exploration | -11 -10 ------------- Run | Yrd Mat Turns Passed 2344 | 169 2175 Spaces Moved 775 | 88 687 Core 14 | 14 . Treads 759 | 74 685 Legs . | . . Wheels 2 | . 2 Hover . | . . Flight . | . . Fastest Speed 50 | 50 145 Average Speed 221 | 144 230 Slowest Speed 240 | 160 240 Overloaded Moves . | . . Propulsion Burnouts . | . . Robots Hopped . | . . Potential Cave-ins . | . . Cave-ins Triggered . | . . Exploration Rate (%) 40 | 5 76 Regions Visited 1 Branch Regions . Pre-discovered Areas . | . . Known Exits Taken . | . . Unknown Exits Taken 1 | 1 . Scrap Searched . | . . Spaces Dug . | . . Terrain Destroyed 9 | . 9 Melee . | . . Projectile . | . . AOE 9 | . 9 Terrain Rammed . | . . Walls Destroyed . | . . Machines Disabled . | . . Actions | -11 -10 --------- Run | Yrd Mat Total 1224 | 117 1107 Wait 302 | 11 291 Move 774 | 87 687 Hop . | . . Pick Up 22 | 5 17 Fast Attach 8 | 7 1 Attach 6 | 1 5 Detach 2 | 1 1 Swap 4 | . 4 Drop 3 | . 3 Fire 103 | 5 98 Melee . | . . Ram . | . . Kick . | . . Crush . | . . Escape Stasis . | . . Rewire . | . . Trap . | . . Miscellaneous . | . . Route ------- -11/Scrapyard -10/Materials (discovered 4 exits: [*Mat x3] / [*Min]) History --------- Turn | Location | Event 2 | -11/Scrapyard | Met Revision 17 12 | -11/Scrapyard | Discovered new exit (range 15) 170 | -11/Scrapyard | Entered Materials 304 | -10/Materials | Build established: Mutant 708 | -10/Materials | Discovered new exit (range 11) 825 | -10/Materials | Repaired Lgt. Treads 951 | -10/Materials | Discovered new exit (range 8) 1170 | -10/Materials | Discovered new exit (range 13) 1541 | -10/Materials | Core integrity fell below 50% 2274 | -10/Materials | Discovered new exit (range 15) 2307 | -10/Materials | Core integrity fell below 20% 2345 | -10/Materials | Destroyed by G-47 Trooper with Particle Gun Last Messages --------------- 02335_ K-01 Serf collects debris. 02335_ U-05 Engineer builds a Wall. 02336_ R-06 Scavenger inserts Heat Sink into recycling unit. 02337_ Recycling unit begins recycling process. 02337_ Lgt. Treads destroyed. 02338_ Recycling unit begins matter transfer process. 02338_ The unstable cave ceiling collapses. 02339_ K-01 Serf collects debris. 02339_ R-06 Scavenger inserts Structural Scanner into recycling unit. 02339_ U-05 Engineer lays Concrete. 02342_ R-06 Scavenger inserts Wheel into recycling unit. 02342_ U-05 Engineer lays Concrete. 02343_ Recycling unit begins recycling process. 02343_ K-01 Serf collects debris. 02343_ Critical hit (Burn: +37). 02344_ U-05 Engineer lays Concrete. Map ----- +----------------------------------------------------+ | | | | | | | | | | | | | | | | | | | ?????????????????????????????????????????????????? | | ?????????????????????????????????????????????????? | | ?????????????????????????????????????????????????? | | ?????????????????????????????????????????????????? | | ?????????????????????????????????????????????????? | | ?????????????????????????????????????????????????? | | #??????????????###???????????????????????????????? | | #??????????????# ###????????????????????????????? | | #?????????#????# # ?#####??????????????????????? | | #????????? =??# < ? ???????????????????????? | | #?????????? # # ? ???????????????????????? | | #???????? ? = ## ##??????????????????????? | | #????????? # u=k %= ########## #??????????? | | #???????????Y" # % g ????????? | | #??????????????# ! [ ????????? | | #??????????????## ! %########???????????????? | | #??????????????## @###????????????????????? | | #???????????????# r""#????????????????????? | | #???????????????# Y"#????????????????????? | | #???????????????# w ""#????????????????????? | | #???????????????# ###????????????????????? | | ############????# """ #??????????????????????? | | #????# """"" #??????????????????????? | | % """ """ ?????# """"" #??????????????????????? | | """ """ #????# """"" #??????????????????????? | | = """ """ #????# """ ####???????????????????? | | """ """ #????# !##??????????????????? | | """ #????# !#??????????????????? | | #????# !#??????????????????? | | ############????# ### !#??????????????????? | | ???????????????## ### !#??????????????????? | | ################ ## !##??????????????????? | | !![ ## ####???????????????????? | | ![[ ## #??????????????????????? | | ![ ## #??????????????????????? | | ##### ## #????????############### | | #???######## #??????? | | #??????????# #??????? | | #??????????# ??????? | | #??????????# #?????????# ##### | | #??????????? #?????????# ????????# | +----------------------------------------------------+ Best States ------------- Heat Dissipation 25 Energy Generation 10 Energy Capacity 250 Matter Stores 300 Matter Capacity 300 Sight Range 16 Terrain Scan Density 10 Evasion (%) 50 Recoil Reduction 2 Item Schematics ----------------- None Robot Schematics ------------------ None Fabricated ------------ Nothing Repaired ---------- Lgt. Treads | 62% | -10/Materials Alien Tech Used ----------------- None Achievements -------------- None Challenges ------------ None Game ------ Seed EnhancedBehemothThrower Manual? 0 Play Time 00:11:17 Cumulative 124.0 hours Start 2025.06.07 @ 05:04:14 End 2025.06.07 @ 05:14:34 Sessions 1 Manual Loads 0 Difficulty Rogue Special Mode None Game No. 76 Rogue 76 Adventurer 0 Explorer 0 Win Type - Total 1 Types 1/0/0/0/0/0/0/0/0/0 Lore% 33 Gallery% 47 Achievement% 51 Wizard Run 0 Options --------- Layout 1 ASCII 0 Keyboard 1 Movement Vi Keybinds 1 Fullscreen 1 Font 32/SmallcapsGlow Map View 50x35 Zoom Use 0% Tactical HUD 1 Map Filters NONE Filters NONE Steam X RUN: ed222f33-0387-4001-a120-1cd48d27c8ca